[Event "84th Georgian Championship 2025"]
[Site "Tbilisi"]
[Date "2025.02.07"]
[Round "5.2"]
[White "Quparadze, Giga"]
[Black "Kacharava, Nikolozi"]
[Result "1-0"]
[Annotator "RC"]
[ECO "B30"]
[WhiteElo "2537"]
[BlackElo "2524"]
[PlyCount "95"]
[EventDate "2025.02.03"]
[EventType "tourn"]
[EventCountry "GEO"]
[SourceTitle "playchess.com"]
[Source "ChessBase"]
[SourceQuality "1"]
[TimeControl "40/5400+30:1800+30"]

1. e4 {[%emt 0:00:02]} c5 {[%emt 0:00:09]} 2. Nf3 {[%emt 0:00:05]} Nc6 {[%emt 0:00:08]} 3. Bb5 {[%emt 0:00:05]} e6 {[%emt 0:00:15]} 4. Bxc6 {[%emt 0:00:06]} bxc6 {[%emt 0:00:09]} 5. b3 {[%emt 0:00:03]} f6 {[%emt 0:00:08]} 6. Bb2 {[%emt 0:00:23]} Nh6 {[%emt 0:01:24]} 7. O-O {[%emt 0:01:50]} Nf7 {[%emt 0:01:39]} 8. d3 {[%emt 0:00:08]} e5 {[%emt 0:13:14]} 9. Nfd2 {[%emt 0:00:06]} d5 {[%emt 0:01:08]} 10. Nc3 {[%emt 0:00:05]} Be7 {[%emt 0:02:14]} 11. Na4 {[%emt 0:00:30]} Ng5 {[%emt 0:10:40]} 12. f3 {[%emt 0:20:20]} O-O {[%emt 0:01:11]} 13. Qe2 {[%emt 0:00:10]} Ne6 {[%emt 0:03:01]} 14. Qf2 {[%emt 0:00:04]} Nd4 {[%emt 0:10:20]} 15. Rac1 {[%emt 0:00:58]} f5 {[%emt 0:02:30]} 16. exd5 {[%emt 0:00:35]} cxd5 {[%emt 0:01:08]} 17. c4 {[%emt 0:00:04]} Bh4 {[%emt 0:24:00]} 18. g3 {[%emt 0:00:07]} Bg5 {[%emt 0:00:09]} 19. Nxc5 {[%emt 0:01:10]} Qa5 {[%emt 0:08:05]} 20. f4 {[%emt 0:00:33]} Qxc5 {[%emt 0:05:03]} 21. Bxd4 {[%emt 0:00:13]} exd4 {[%emt 0:00:06]} 22. fxg5 {[%emt 0:00:04]} Bb7 {[%emt 0:04:36]} 23. Nf3 {[%emt 0:00:21]} dxc4 {[%emt 0:01:14]} 24. Rxc4 {[%emt 0:00:06]} Qb6 {[%emt 0:00:37]} 25. Nxd4 {[%emt 0:02:18]} Rad8 {[%emt 0:00:31]} 26. h4 {[%emt 0:00:08]} Bd5 {[%emt 0:02:33]} 27. Ra4 {[%emt 0:00:14]} Ba8 {[%emt 0:04:33]} 28. Kh2 {[%emt 0:00:07]} Rd5 {[%emt 0:00:15]} 29. Rc4 {[%emt 0:02:22]} g6 {[%emt 0:00:08]} 30. Re1 {[%emt 0:05:16]} Rfd8 {[%emt 0:00:22]} 31. Qe3 {[%emt 0:00:26]} Bb7 {[%emt 0:02:30]} 32. Nc6 {[%emt 0:02:21]} Bxc6 {[%emt 0:01:26]} 33. Qe6+ {[%emt 0:01:09]} Kh8 {[%emt 0:00:08]} 34. Rxc6 {[%emt 0:00:16]} Qf2+ {[%emt 0:00:12]} 35. Kh3 {[%emt 0:00:02]} R5d7 {[%emt 0:01:42]} 36. Qe5+ {[%emt 0:03:03]} Kg8 {[%emt 0:00:05]} 37. Re6 {[%emt 0:00:04]} Rf8 {[%emt 0:00:31]} 38. Re8 {[%emt 0:00:45]} Qd4 {[%emt 0:00:48]} 39. Qe6+ {[%emt 0:02:57]} Kg7 {[%emt 0:00:07]} 40. Rxf8 {[%emt 0:00:00]} Kxf8 {[%emt 0:00:00]} 41. Rc1 {[%emt 0:02:36]} Qg4+ {[%emt 0:04:51]} 42. Kh2 {[%emt 0:02:08]} Qd4 {[%emt 0:00:10]} 43. Kh3 {[%emt 0:00:49]} Qg4+ {[%emt 0:00:30]} 44. Kg2 {[%emt 0:00:04]} Qd4 {[%emt 0:00:34]} 45. Rc8+ {[%emt 0:00:03]} Rd8 {[%emt 0:00:04]} 46. Rc7 {[%emt 0:00:07]} Qd5+ {[%emt 0:00:42]} 47. Qxd5 {[%emt 0:00:05]} Rxd5 {[%emt 0:00:04]} 48. Rxh7 {[%emt 0:00:04]} 1-0

[Event "84th Georgian Championship 2025"]
[Site "Tbilisi"]
[Date "2025.02.07"]
[Round "5.3"]
[White "Sanikidze, Tornike"]
[Black "Tutisani, Noe"]
[Result "1/2-1/2"]
[Annotator "TA"]
[ECO "D02"]
[WhiteElo "2432"]
[BlackElo "2439"]
[PlyCount "59"]
[EventDate "2025.02.03"]
[EventType "tourn"]
[EventCountry "GEO"]
[SourceTitle "playchess.com"]
[Source "ChessBase"]
[SourceQuality "1"]
[TimeControl "40/5400+30:1800+30"]

{[%evp 9,59,12,20,-20,7,0,28,24,34,23,26,0,0,4,22,-7,2,-59,-51,-59,-56,-64,-69,-68,-77,-77,-83,-76,-72,-56,-62,-54,-53,-47,-48,-54,-7,-10,-10,-17,-16,-16,-16,-30,-26,-26,-13,-13,-13,-17,-9,-20]} 1. Nf3 {[%emt 0:00:11]} d5 {[%emt 0:00:20]} 2. g3 {[%emt 0:00:42]} Nf6 {[%emt 0:03:33]} 3. Bg2 {[%emt 0:00:41]} g6 {[%emt 0:00:16]} 4. O-O {[%emt 0:01:52]} Bg7 {[%emt 0:00:03]} 5. d4 {[%emt 0:06:03]} O-O {[%emt 0:00:09][%cal Oc7c5]} 6. a4 {[%emt 0:06:07] D02: 1 d4 d5 2 Nf3 sidelines, including 2...Nf6 3 g3 and 2...Nf6 3 Bf4.} Nc6 {[%emt 0:05:10]} 7. a5 {[%emt 0:02:03]} Ne4 {[%emt 0:02:20]} 8. c3 {[%emt 0:08:57] White has an edge.} Rb8 $146 {[%emt 0:13:11]} (8... e5 9. Nxe5 Nxe5 10. dxe5 Bxe5 11. c4 c6 12. cxd5 cxd5 13. Nd2 Nxd2 14. Bxd2 Bxb2 {½-½ Predke,A (2584)-Gharibyan,M (2382) Wch Rapid Almaty 2022 (1)}) 9. Bf4 {[%emt 0:02:47]} h6 {[%emt 0:00:26]} 10. Nbd2 {[%emt 0:11:06]} g5 {[%emt 0:05:40]} 11. Be3 {[%emt 0:00:13]} f5 {[%emt 0:00:19]} 12. Nxe4 {[%emt 0:03:01]} dxe4 {[%emt 0:01:24] [#]} 13. Ne5 {[%emt 0:04:21]} Nxe5 $15 {[%emt 0:02:07]} 14. dxe5 {[%emt 0:04:06]} Qxd1 {[%emt 0:00:42]} 15. Rfxd1 {[%emt 0:01:12]} b6 {[%emt 0:03:13]} 16. axb6 {[%emt 0:00:12]} axb6 {[%emt 0:00:02]} 17. f4 {[%emt 0:01:40]} exf3 {[%emt 0:00:16]} 18. exf3 {[%emt 0:00:02] [#]} f4 $1 {[%emt 0:00:29]} 19. gxf4 {[%emt 0:04:10]} gxf4 {[%emt 0:00:14]} 20. Bd4 {[%emt 0:01:59]} c5 {[%emt 0:00:37]} 21. Bf2 {[%emt 0:00:01]} Bxe5 {[%emt 0:00:05]} 22. Bf1 {[%emt 0:00:05]} Kh8 {[%emt 0:13:32]} (22... Bd6 $15 {deserves consideration.}) 23. Bh4 $1 $11 {[%emt 0:01:11]} Bd6 {[%emt 0:02:09]} 24. Kf2 {[%emt 0:05:02]} Bf5 {[%emt 0:02:19]} 25. Ra7 {[%emt 0:01:56]} Ra8 {[%emt 0:02:02]} 26. Rda1 {[%emt 0:03:47]} Rxa7 {[%emt 0:02:20]} 27. Rxa7 {[%emt 0:00:05]} Rd8 {[%emt 0:00:11]} 28. Rb7 {[%emt 0:07:44] The position is equal.} Kg7 {[%emt 0:00:28]} 29. Rxb6 {[%emt 0:02:36]} Kf7 {[%emt 0:00:06]} 30. Bc4+ {[%emt 0:00:59] Weighted Error Value: White=0.12 (very precise) /Black=0.07 (flawless)   Mistake:       	White=1     	Black=1      Inaccurate:     	White=1     	Black=2      OK:         	White=8     	Black=7      Best:        	White=1     	Black=5      Strong:       	White=1     	Black=1} 1/2-1/2

[Event "84th Georgian Championship 2025"]
[Site "Tbilisi"]
[Date "2025.02.07"]
[Round "5.4"]
[White "Nigalidze, Gaioz"]
[Black "Gagunashvili, Merab"]
[Result "1/2-1/2"]
[Annotator "TA"]
[ECO "C84"]
[WhiteElo "2378"]
[BlackElo "2541"]
[PlyCount "74"]
[EventDate "2025.02.03"]
[EventType "tourn"]
[EventCountry "GEO"]
[SourceTitle "playchess.com"]
[Source "ChessBase"]
[SourceQuality "1"]
[TimeControl "40/5400+30:1800+30"]

{[%evp 14,74,16,0,22,13,30,0,2,0,0,0,17,16,15,24,8,27,22,17,15,10,27,16,13,18,8,17,44,35,50,27,60,25,40,33,38,0,0,0,0,-15,-14,-16,0,-5,-2,-7,-7,-11,-3,-9,0,0,0,0,0,0,0,0,0,0,0]} 1. e4 {[%emt 0:00:03]} e5 {[%emt 0:01:24]} 2. Nf3 {[%emt 0:00:13]} Nc6 {[%emt 0:00:06]} 3. Bb5 {[%emt 0:01:24][%cal Bf1b5,Bb5a4,Ba4b3,Bb3a2][%mdl 32]} a6 {[%emt 0:00:09]} 4. Ba4 {[%emt 0:00:07]} Nf6 {[%emt 0:00:06]} 5. O-O {[%emt 0:00:14]} Be7 {[%emt 0:01:20]} 6. d3 {[%emt 0:00:47]} b5 {[%emt 0:00:20]} 7. Bb3 {[%emt 0:00:06]} d6 {[%emt 0:00:44]} 8. h3 {[%emt 0:01:02]} O-O {[%emt 0:02:09]} 9. a4 {[%emt 0:01:01]} Bb7 {[%emt 0:03:03]} 10. c3 {[%emt 0:11:29]} Na5 {[%emt 0:02:41]} 11. Ba2 {[%emt 0:05:43]} c5 {[%emt 0:01:43]} 12. Bg5 {[%emt 0:01:46]} Nd7 {[%emt 0:12:11]} 13. Bxe7 {[%emt 0:02:52]} Qxe7 {[%emt 0:00:59]} 14. axb5 {[%emt 0:00:22]} axb5 {[%emt 0:00:16]} 15. Na3 {[%emt 0:04:17][%cal Bb1a3,Ba3c2,Bc2b4][%mdl 32]} Bc6 {[%emt 0:02:28]} 16. Nc2 {[%emt 0:16:45]} c4 {[%emt 0:12:11]} 17. Nb4 {[%emt 0:06:08]} Bb7 {[%emt 0:01:02]} 18. dxc4 {[%emt 0:07:48]} bxc4 {[%emt 0:03:18][%cal Od7f6]} 19. Qe2 {[%emt 0:00:38][%cal Of3d2]} Nb6 {[%emt 0:02:59]} 20. Nd2 {[%emt 0:02:15]} Qe6 {[%emt 0:03:05]} 21. Bb1 {[%emt 0:03:34]} g6 {[%emt 0:13:33]} 22. Bc2 {[%emt 0:05:27]} f5 {[%emt 0:08:01]} 23. f3 {[%emt 0:02:20]} d5 {[%emt 0:05:16]} 24. exd5 {[%emt 0:06:02]} (24. Qe3 {seems wilder.} d4 25. cxd4 Qd6 26. exf5 exd4 27. Qe6+) 24... Nxd5 {[%emt 0:01:04]} 25. Nxd5 {[%emt 0:06:33]} ({And not} 25. Nxc4 Nf4 26. Qxe5 Qxc4 $17 (26... Nxc4 $2 {loses.} 27. Qxf4 Nxb2 28. Rxa8 $18)) 25... Bxd5 {[%emt 0:00:35] The position is equal.} 26. Qe3 {[%emt 0:00:29]} Nc6 {[%emt 0:05:46]} 27. Rxa8 {[%emt 0:02:59]} Rxa8 {[%emt 0:00:06]} 28. Rb1 {[%emt 0:00:17]} Rb8 {[%emt 0:01:45]} 29. Qc5 {[%emt 0:00:36][%cal Oc2e4]} Ne7 {[%emt 0:01:09]} 30. b4 {[%emt 0:04:12]} cxb3 {[%emt 0:00:38]} 31. Bxb3 {[%emt 0:01:51]} Bxb3 {[%emt 0:01:46]} 32. Rxb3 {[%emt 0:00:15]} Rxb3 {[%emt 0:01:11]} 33. Nxb3 {[%emt 0:00:05]} Qxb3 {[%emt 0:00:11]} 34. Qxe7 {[%emt 0:00:06]} Qxc3 $11 {[%emt 0:00:16] KQ-KQ} 35. Qe8+ {[%emt 0:00:05]} Kg7 {[%emt 0:00:06]} 36. Qe7+ {[%emt 0:00:04]} Kg8 {[%emt 0:00:06]} 37. Qe8+ {[%emt 0:00:04]} Kg7 {[%emt 0:00:05] Weighted Error Value: White=0.07 (flawless) /Black=0.06 (flawless) .  Inaccurate:     	White=3     	Black=2      OK:         	White=13    	Black=9} 1/2-1/2

[Event "84th Georgian Championship 2025"]
[Site "Tbilisi"]
[Date "2025.02.07"]
[Round "5.5"]
[White "Paichadze, Luka"]
[Black "Mchedlishvili, Mikheil"]
[Result "1-0"]
[Annotator "TA"]
[ECO "C42"]
[WhiteElo "2532"]
[BlackElo "2568"]
[PlyCount "51"]
[EventDate "2025.02.03"]
[EventType "tourn"]
[EventCountry "GEO"]
[SourceTitle "playchess.com"]
[Source "ChessBase"]
[SourceQuality "1"]
[TimeControl "40/5400+30:1800+30"]

{[%evp 15,51,27,32,13,21,7,10,5,9,16,23,13,29,19,38,0,0,0,28,28,34,14,24,0,0,0,0,0,583,470,455,466,1158,1159,1114,1075,2073,2012]} 1. e4 {[%emt 0:00:07]} e5 {[%emt 0:00:15]} 2. Nf3 {[%emt 0:00:07]} Nf6 {[%emt 0:00:25][%cal Bg8f6,Bf6e4,Be4d6][%mdl 32]} 3. Nxe5 {[%emt 0:01:34]} d6 {[%emt 0:00:20]} 4. Nf3 {[%emt 0:00:05]} Nxe4 {[%emt 0:00:09]} 5. d4 {[%emt 0:00:40]} d5 {[%emt 0:00:49]} 6. Bd3 {[%emt 0:00:22]} Be7 {[%emt 0:00:49]} 7. O-O {[%emt 0:00:24]} Bf5 {[%emt 0:00:44] Nowadays more popular than 7...Nc6.} 8. Re1 {[%emt 0:01:24]} O-O {[%emt 0:00:51]} 9. Nbd2 {[%emt 0:08:28] C42: Petroff Defence: 3 Nxe5 and unusual White 3rd moves.} Nd6 {[%emt 0:00:36]} 10. Nf1 {[%emt 0:02:59]} c6 {[%emt 0:01:35]} 11. Ng3 {[%emt 0:00:56] The position is equal.} Bxd3 {[%emt 0:02:35]} 12. Qxd3 {[%emt 0:00:03]} Na6 {[%emt 0:04:34]} 13. b3 {[%emt 0:08:04]} Nc7 {[%emt 0:06:22]} 14. c4 $146 {[%emt 0:02:28]} (14. Bd2 Re8 15. Re2 Bf8 16. Rae1 Rxe2 17. Rxe2 f6 18. h4 Qd7 19. h5 Re8 20. Rxe8 Ndxe8 {1-0 Abdusattorov,N (2713)-So,W (2760) Speed Chess Chess.com INT blitz 2022 (1.34)}) 14... Ne6 {[%emt 0:08:53]} 15. cxd5 {[%emt 0:03:04]} cxd5 {[%emt 0:00:25]} 16. Re5 {[%emt 0:00:40]} Nc8 {[%emt 0:14:13] [#]} 17. h4 $1 $40 {[%emt 0:11:15][%mdl 128] White has some attack.} Re8 {[%emt 0:07:37]} 18. Nf5 {[%emt 0:11:47][%cal Bg3f5,Bf5h6,Bh6f7][%mdl 32]} (18. Bd2 Bf6 19. Bg5 Bxg5 20. Nxg5 Nxg5 21. hxg5 Rxe5 22. dxe5 Ne7 23. Rd1) 18... Qd7 {[%emt 0:07:28]} 19. Bh6 {[%emt 0:14:18]} gxh6 {[%emt 0:25:16]} 20. Nxh6+ {[%emt 0:07:52]} Kg7 {[%emt 0:01:36]} 21. Rf5 {[%emt 0:02:21] Dodges Nf4} Nd8 {[%emt 0:08:37][%mdl 8192]} ({Stronger than} 21... Kxh6 22. Rh5+ Kxh5 23. Qxh7+ Kg4 24. Nh2+ Kf4 25. g3#) (21... Nd6 $1 $11 22. Ne5 Qc8) 22. Ne5 $18 {[%emt 0:02:18][%csl LRd7,LRf7] White is clearly winning.} Qe6 {[%emt 0:02:11]} 23. Nhxf7 {[%emt 0:04:49] Black must now prevent Qg3+.} ({Less strong is} 23. Nexf7 Rf8 24. Nxd8 (24. Qg3+ Qg6 $11) 24... Bxd8 25. Rxf8 Kxf8 26. Qxh7 Nd6 27. Qh8+ Ke7 $14) 23... Bf6 {[%emt 0:03:36] [#]} (23... h6 $142 24. Nxd8 (24. Qg3+ Kh7 $18) 24... Bxd8 25. Qg3+ Kh8) 24. Rh5 $1 {[%emt 0:01:55]} Kf8 {[%emt 0:01:09] [#]} 25. Qxh7 $1 {[%emt 0:00:23][%cal Re5g6]} Ne7 {[%emt 0:01:11] [#]} (25... Qxf7 26. Ng6+) 26. Rh6 $1 {[%emt 0:04:42] Weighted Error Value: White=0.07 (flawless) /Black=0.89  Loses game:     	---       	Black=1      Mistake:       	---       	Black=1      Inaccurate:     	White=1     	Black=1      OK:         	White=7     	Black=5      Best:        	---       	Black=4} 1-0

[Event "84th Georgian Championship 2025"]
[Site "Tbilisi"]
[Date "2025.02.09"]
[Round "6.1"]
[White "Nigalidze, Gaioz"]
[Black "Pantsulaia, Levan"]
[Result "0-1"]
[Annotator "TA"]
[ECO "E90"]
[WhiteElo "2378"]
[BlackElo "2522"]
[PlyCount "102"]
[EventDate "2025.02.03"]
[EventType "tourn"]
[EventCountry "GEO"]
[SourceTitle "playchess.com"]
[Source "ChessBase"]
[SourceQuality "1"]
[TimeControl "40/5400+30:1800+30"]

{[%evp 18,102,36,36,75,79,88,67,77,62,106,71,95,103,112,84,99,81,89,58,65,53,66,25,58,43,43,17,29,0,0,0,0,0,0,0,0,0,0,-26,-23,-97,-76,-83,-68,-190,-206,-208,-207,-213,-216,-208,-201,-207,-199,-199,-184,-192,-175,-401,-381,-506,-483,-540,-525,-525,-525,-525,-517,-533,-506,-477,-430,-1594,-1606,-5406,-5285,-3210,-5400,-5439,-5446,-29959,-29955,-5447,-5439,-5439,-4427]} 1. d4 {[%emt 0:01:39]} Nf6 {[%emt 0:00:36]} 2. c4 {[%emt 0:00:16]} c5 {[%emt 0:01:38]} 3. d5 {[%emt 0:01:24]} g6 {[%emt 0:00:24]} 4. Nc3 {[%emt 0:00:24]} Bg7 {[%emt 0:00:20]} 5. e4 {[%emt 0:00:45]} d6 {[%emt 0:04:10]} 6. h3 {[%emt 0:01:59]} O-O {[%emt 0:00:13]} 7. Nf3 {[%emt 0:03:23]} e6 {[%emt 0:03:08]} 8. Bd3 {[%emt 0:05:27]} exd5 {[%emt 0:00:46]} 9. exd5 {[%emt 0:00:14]} Re8+ {[%emt 0:00:23]} 10. Be3 {[%emt 0:00:31]} Rxe3+ $1 {[%emt 0:00:51][%mdl 4] is now more promising than 10...Bh6. E90: King's Indian: Classical: Early deviations and 6 h3.} 11. fxe3 {[%emt 0:00:08]} Qe7 {[%emt 0:00:07][%cal Of6h5]} 12. O-O {[%emt 0:02:53]} Nbd7 {[%emt 0:00:35] White is slightly better.} 13. Qe1 {[%emt 0:03:07]} h6 {[%emt 0:10:45]} 14. Qf2 {[%emt 0:08:51]} Ne5 $146 {[%emt 0:05:29]} (14... Nh7 15. Ne4 Ne5 16. Nxe5 Bxe5 17. Nc3 Bd7 18. Ne2 Be8 19. Nf4 Nf6 20. Rae1 Nd7 {0-1 Peralta,F (2558)-Duda,J (2732) Olympiad-45 Budapest 2024 (3.10)}) 15. Nxe5 {[%emt 0:03:41]} Qxe5 {[%emt 0:00:13]} 16. Rae1 {[%emt 0:02:24][%cal Ba1e1,Be1e2,Be2f2][%mdl 32]} a6 {[%emt 0:06:25]} 17. Qf4 {[%emt 0:03:13]} Qe7 {[%emt 0:00:07]} 18. Re2 {[%emt 0:04:39]} Nd7 {[%emt 0:01:36]} 19. Ref2 {[%emt 0:03:57][%cal Rf4f7]} Ne5 {[%emt 0:00:21]} 20. Bb1 {[%emt 0:01:00]} Rb8 {[%emt 0:06:18]} 21. Ne4 {[%emt 0:17:05]} Bf5 {[%emt 0:00:33][%cal Ob8e8]} 22. b3 {[%emt 0:12:13]} b5 {[%emt 0:01:44]} 23. cxb5 {[%emt 0:02:51]} axb5 {[%emt 0:00:07]} 24. g4 {[%emt 0:00:25]} Bxe4 {[%emt 0:00:08]} 25. Qxe4 {[%emt 0:01:24][%cal Of2f7]} Qh4 {[%emt 0:06:14]} 26. Kg2 {[%emt 0:02:11][%cal Of2f7]} Ra8 {[%emt 0:03:56]} 27. Bd3 {[%emt 0:02:17]} c4 {[%emt 0:10:16] Really sharp!} 28. bxc4 {[%emt 0:00:50]} (28. Bb1 $5) 28... bxc4 {[%emt 0:00:12]} 29. Bxc4 {[%emt 0:04:46]} (29. Be2 $11 {keeps the balance.}) 29... f5 $1 $17 {[%emt 0:00:45]} 30. Qf4 {[%emt 0:01:33]} (30. gxf5 $2 Qxe4+ 31. Kg1 Qxe3 $19 (31... Qxc4 $2 32. f6 $19)) 30... fxg4 {[%emt 0:00:27] Black is more active.} 31. hxg4 {[%emt 0:00:26] [#] Loses the game.} (31. Be2 $1 $15 Qxh3+ (31... Rxa2 32. Bxg4 Rxf2+ 33. Rxf2 $16) 32. Kg1) 31... g5 $1 $19 {[%emt 0:01:00]} 32. Qe4 {[%emt 0:00:18] and Be2 should not be overlooked} Nxg4 {[%emt 0:00:21] ( -> ...Qh2+)} 33. Kg1 {[%emt 0:00:49] [#]} ({Wrong is} 33. Qe6+ $2 Kh8 34. Rf5 Qh2+ 35. Kf3 Ne5+ 36. Rxe5 dxe5 $19 (36... Bxe5 $2 37. Ke4 $19)) 33... Qg3+ $1 {[%emt 0:00:29]} 34. Qg2 {[%emt 0:00:26]} Qxg2+ {[%emt 0:00:10]} 35. Rxg2 {[%emt 0:00:13]} Nxe3 {[%emt 0:00:05]} 36. Bb3 {[%emt 0:00:46]} Nxf1 {[%emt 0:01:43]} 37. Kxf1 {[%emt 0:00:13][%mdl 4096] Endgame KRB-KRB. Black is a pawn up.} Be5 {[%emt 0:00:47] Dodges Rh2} 38. Rc2 $2 {[%emt 0:01:13]} (38. a4) 38... h5 {[%emt 0:01:36]} 39. Kg2 {[%emt 0:00:45]} Kg7 {[%emt 0:03:33]} 40. Rc4 {[%emt 0:00:00]} g4 {[%emt 0:00:00]} 41. a4 {[%emt 0:03:00]} Rb8 {[%emt 0:04:27]} 42. Bc2 {[%emt 0:01:55]} Rb2 {[%emt 0:00:14]} 43. Kf2 {[%emt 0:01:13]} Kf6 {[%emt 0:05:46] Strongly threatening ...h4.} 44. Ke3 {[%emt 0:01:15]} Ra2 {[%emt 0:01:20]} 45. Rc8 {[%emt 0:02:14]} (45. Bd1 $142) 45... h4 {[%emt 0:00:51]} 46. Rf8+ {[%emt 0:01:22]} Ke7 {[%emt 0:01:21][%cal Oa2c2]} 47. Rc8 {[%emt 0:00:33]} h3 {[%emt 0:00:16] ( -> ...g3)} 48. Bf5 {[%emt 0:00:57]} h2 {[%emt 0:00:18]} 49. Be4 {[%emt 0:00:10]} g3 {[%emt 0:00:39]} 50. Rg8 {[%emt 0:00:21]} g2 {[%emt 0:00:24]} 51. Rxg2 {[%emt 0:00:13]} Ra3+ {[%emt 0:51:53] Weighted Error Value: White=0.56/Black=0.06 (flawless)   Mistake:       	White=4     	---        Inaccurate:     	White=8     	Black=2      OK:         	White=8     	Black=19     Best:        	White=1     	Black=2      Strong:       	---       	Black=3} (51... h1=B $2 {perishes.} 52. Rxa2 Kd7 53. Rc2 (53. Bxh1 Kc7 $18) 53... Bxe4 54. Kxe4 $18) 0-1

[Event "84th Georgian Championship 2025"]
[Site "Tbilisi"]
[Date "2025.02.09"]
[Round "6.2"]
[White "Petriashvili, Nikoloz"]
[Black "Paichadze, Luka"]
[Result "1/2-1/2"]
[Annotator "TA"]
[ECO "B12"]
[WhiteElo "2450"]
[BlackElo "2532"]
[PlyCount "105"]
[EventDate "2025.02.03"]
[EventType "tourn"]
[EventCountry "GEO"]
[SourceTitle "playchess.com"]
[Source "ChessBase"]
[SourceQuality "1"]
[TimeControl "40/5400+30:1800+30"]

{[%evp 12,105,16,5,13,10,12,15,2,0,0,0,0,0,11,18,20,14,14,15,0,6,4,-38,-29,-35,-41,-33,-35,-54,-47,-54,-54,-71,-72,-82,-68,-98,-100,-99,-65,-82,-76,-89,-70,-54,-56,-72,-39,-56,-18,-25,-18,-22,-8,-8,-9,-8,0,0,0,0,0,0,0,0,0,0,0,0,0,0,0,0,0,-8,-8,-8,0,0,0,0,0,-8,-8,-8,-8,-8,-8,-8,-8,-8,-8,-8,-8,-8]} 1. e4 {[%emt 0:00:02]} c6 {[%emt 0:00:06]} 2. d4 {[%emt 0:00:04]} d5 {[%emt 0:00:03]} 3. e5 {[%emt 0:00:03]} Bf5 {[%emt 0:00:05]} 4. h4 {[%emt 0:00:03]} h5 {[%emt 0:00:17]} 5. Bd3 {[%emt 0:00:05]} Bxd3 {[%emt 0:00:05]} 6. Qxd3 {[%emt 0:00:03]} e6 {[%emt 0:00:33] 6...Qa5+ deserves study.} 7. Nf3 {[%emt 0:00:04]} Qa5+ {[%emt 0:02:00] B12: Caro-Kann: Advance Variation.} 8. c3 {[%emt 0:03:06]} Qa6 {[%emt 0:01:16]} 9. Qxa6 {[%emt 0:08:39]} Nxa6 {[%emt 0:00:12]} 10. Be3 {[%emt 0:01:32]} Ne7 {[%emt 0:01:11]} 11. a4 $146 {[%emt 0:06:03]} (11. Nbd2 Nf5 12. Nf1 c5 13. Ng3 cxd4 14. cxd4 Bb4+ 15. Ke2 Nxg3+ 16. fxg3 Rc8 17. Rac1 {0-1 Rybkin,R (1810)-Kononenko,D (2224) St Petersburg Korchnoi Memorial op 2024 (1)}) 11... Nf5 {[%emt 0:01:24]} 12. b4 {[%emt 0:00:09]} Nb8 {[%emt 0:05:42]} 13. a5 {[%emt 0:01:35]} Nd7 {[%emt 0:00:07]} 14. Bf4 {[%emt 0:01:28]} Be7 {[%emt 0:01:47]} 15. Nbd2 {[%emt 0:01:10]} O-O {[%emt 0:02:14]} 16. Ke2 {[%emt 0:00:16]} b6 {[%emt 0:01:57]} 17. Nf1 {[%emt 0:08:33]} c5 {[%emt 0:06:53]} 18. bxc5 {[%emt 0:00:19]} bxc5 {[%emt 0:00:06]} 19. Ne3 {[%emt 0:00:22]} Nxe3 {[%emt 0:00:54]} 20. fxe3 {[%emt 0:00:35]} Rfb8 {[%emt 0:05:06]} 21. Ra2 {[%emt 0:02:01]} Rb5 {[%emt 0:04:34]} 22. Nd2 {[%emt 0:07:39]} Rc8 {[%emt 0:10:09]} 23. g3 {[%emt 0:02:09]} Nb8 {[%emt 0:08:24]} 24. Rb1 {[%emt 0:00:42]} Rxb1 {[%emt 0:00:10]} 25. Nxb1 {[%emt 0:00:04]} Nc6 {[%emt 0:00:47]} 26. a6 {[%emt 0:06:05]} Rb8 {[%emt 0:01:20]} 27. Nd2 {[%emt 0:00:04]} Rb6 {[%emt 0:03:05]} 28. dxc5 {[%emt 0:03:41]} Bxc5 {[%emt 0:00:22]} 29. Kd3 {[%emt 0:00:14]} Nb8 {[%emt 0:03:57]} 30. Ra5 $1 {[%emt 0:01:31]} (30. e4 Rxa6 (30... Nxa6 31. exd5 exd5 32. Ra5 $15) 31. Rxa6 Nxa6 32. exd5 exd5 $11) 30... Bf8 {[%emt 0:10:17]} 31. e4 {[%emt 0:01:10]} Rxa6 {[%emt 0:00:41]} 32. Rxa6 {[%emt 0:05:23] The position is equal.} Nxa6 {[%emt 0:04:40]} 33. exd5 $1 {[%emt 0:00:01]} exd5 $11 {[%emt 0:00:08][%mdl 4096] Endgame With the idea ...Bc5. KBN-KBN. Black is a pawn up.} 34. Be3 {[%emt 0:00:07]} Bc5 {[%emt 0:07:18]} 35. Bxc5 {[%emt 0:01:07]} Nxc5+ {[%emt 0:00:02] KN-KN. Black is a pawn up.} 36. Kd4 {[%emt 0:00:01]} Na4 {[%emt 0:06:13]} 37. Nf1 {[%emt 0:00:19][%cal Of1e3]} Nb6 {[%emt 0:11:26]} (37... Kf8 $5) 38. Ne3 {[%emt 0:00:13]} a5 {[%emt 0:02:39]} 39. Nxd5 {[%emt 0:00:12]} a4 {[%emt 0:00:52] [#]} 40. Nb4 {[%emt 0:00:00]} (40. Nxb6 $2 {loses.} a3 41. e6 fxe6 $19) 40... Kf8 {[%emt 0:00:00]} 41. c4 {[%emt 0:10:10][%cal Bc3c4,Bc4c5][%mdl 32]} Ke7 {[%emt 0:02:46]} 42. c5 {[%emt 0:02:16]} Nc8 {[%emt 0:01:48]} 43. Nd5+ {[%emt 0:06:35]} Kd7 {[%emt 0:01:19]} 44. Nf4 {[%emt 0:02:08]} g6 {[%emt 0:01:47]} 45. e6+ {[%emt 0:00:22]} fxe6 {[%emt 0:01:41][%cal Oe6e5] [#]} 46. Nxg6 {[%emt 0:00:05]} Ne7 {[%emt 0:05:24]} 47. Nf8+ {[%emt 0:00:45]} Kc6 {[%emt 0:00:12][%cal Oe6e5]} 48. Nxe6 {[%emt 0:00:05]} Nf5+ {[%emt 0:00:25]} 49. Kc4 {[%emt 0:00:05]} a3 {[%emt 0:00:40][%cal Oa3a2] ...a2! would now be deadly.} 50. Kb3 {[%emt 0:00:04]} Nxg3 {[%emt 0:00:08]} 51. Kxa3 {[%emt 0:00:04]} Kd5 {[%emt 0:00:14]} 52. Nf4+ {[%emt 0:00:02]} Kxc5 {[%emt 0:00:05]} 53. Nxh5 {[%emt 0:00:48] Weighted Error Value: White=0.03 (flawless) /Black=0.05 (flawless)   Inaccurate:     	White=2     	Black=3      OK:         	White=27    	Black=23     Best:        	White=3     	---        Strong:       	White=2     	---} 1/2-1/2